[Event "Late-Titled-Tuesday-Blitz-November-28-2023"]
[Site "Chess.com"]
[Date "2023.11.28"]
[Round "4"]
[White "The_Machine04"]
[Black "jcibarra"]
[Result "1/2-1/2"]
[WhiteElo "2672"]
[BlackElo "2905"]
[TimeControl "180+1"]
[EndTime "14:38:40 PST"]
[Termination "Game drawn by stalemate"]

1. d4 {[%clk 0:03:00]} 1... Nf6 {[%clk 0:02:59.7]} 2. Nf3 {[%clk 0:03:00]} 2...
g6 {[%clk 0:02:59]} 3. Nbd2 {[%clk 0:03:00]} 3... Bg7 {[%clk 0:02:55]} 4. e4
{[%clk 0:02:59.8]} 4... O-O {[%clk 0:02:55.1]} 5. c3 {[%clk 0:02:59.5]} 5... c5
{[%clk 0:02:46.6]} 6. dxc5 {[%clk 0:02:52.2]} 6... Qc7 {[%clk 0:02:46.6]} 7. b4
{[%clk 0:02:38.7]} 7... b6 {[%clk 0:02:34.7]} 8. Ba3 {[%clk 0:02:20.6]} 8...
bxc5 {[%clk 0:02:31.1]} 9. bxc5 {[%clk 0:02:21.5]} 9... Na6 {[%clk 0:02:22.6]}
10. c6 {[%clk 0:01:50]} 10... Qxc6 {[%clk 0:01:42.4]} 11. Bxe7 {[%clk
0:01:46.7]} 11... Re8 {[%clk 0:01:42]} 12. Bxf6 {[%clk 0:01:46]} 12... Bxf6
{[%clk 0:01:42.5]} 13. Bc4 {[%clk 0:01:40.6]} 13... Rxe4+ {[%clk 0:01:31.2]} 14.
Nxe4 {[%clk 0:01:24.4]} 14... Qxe4+ {[%clk 0:01:31]} 15. Qe2 {[%clk 0:01:18.4]}
15... Bxc3+ {[%clk 0:01:30.1]} 16. Kf1 {[%clk 0:01:16.5]} 16... Qxe2+ {[%clk
0:01:15.5]} 17. Kxe2 {[%clk 0:01:17.4]} 17... Bxa1 {[%clk 0:01:16]} 18. Rxa1
{[%clk 0:01:16.8]} 18... Nc7 {[%clk 0:01:15.4]} 19. Rd1 {[%clk 0:01:04.4]} 19...
d5 {[%clk 0:01:07.3]} 20. Bxd5 {[%clk 0:00:59]} 20... Ba6+ {[%clk 0:01:07.1]}
21. Ke3 {[%clk 0:00:52.5]} 21... Re8+ {[%clk 0:01:04.8]} 22. Kf4 {[%clk
0:00:49.8]} 22... Re2 {[%clk 0:00:29]} 23. Bb3 {[%clk 0:00:34.9]} 23... Re7
{[%clk 0:00:14.6]} 24. Rd6 {[%clk 0:00:20.5]} 24... Kg7 {[%clk 0:00:10.7]} 25.
Ng5 {[%clk 0:00:14]} 25... f6 {[%clk 0:00:08.2]} 26. Ne6+ {[%clk 0:00:11.3]}
26... Nxe6+ {[%clk 0:00:08.2]} 27. Rxe6 {[%clk 0:00:12.2]} 27... Rxe6 {[%clk
0:00:06.8]} 28. Bxe6 {[%clk 0:00:13.1]} 28... Kf8 {[%clk 0:00:06.5]} 29. a3
{[%clk 0:00:11.4]} 29... Ke7 {[%clk 0:00:06.9]} 30. Bg8 {[%clk 0:00:11.7]} 30...
h6 {[%clk 0:00:06.2]} 31. h4 {[%clk 0:00:11.4]} 31... Bd3 {[%clk 0:00:06]} 32.
g3 {[%clk 0:00:11.1]} 32... Kd6 {[%clk 0:00:05.9]} 33. Bb3 {[%clk 0:00:10.4]}
33... Kc5 {[%clk 0:00:05.7]} 34. Ke3 {[%clk 0:00:11]} 34... Bf5 {[%clk
0:00:05.7]} 35. Bf7 {[%clk 0:00:09.9]} 35... g5 {[%clk 0:00:05.9]} 36. hxg5
{[%clk 0:00:10.2]} 36... fxg5 {[%clk 0:00:06.4]} 37. f4 {[%clk 0:00:10.2]} 37...
Kd6 {[%clk 0:00:02.7]} 38. Kd4 {[%clk 0:00:08.7]} 38... gxf4 {[%clk 0:00:02.3]}
39. gxf4 {[%clk 0:00:09.6]} 39... Bg4 {[%clk 0:00:02.9]} 40. Ke4 {[%clk
0:00:08.6]} 40... Ke7 {[%clk 0:00:03.6]} 41. Bc4 {[%clk 0:00:07.4]} 41... Kf6
{[%clk 0:00:04.2]} 42. Ke3 {[%clk 0:00:07.3]} 42... h5 {[%clk 0:00:04.3]} 43.
Bd3 {[%clk 0:00:07.7]} 43... h4 {[%clk 0:00:04.7]} 44. Kf2 {[%clk 0:00:04.4]}
44... Bf5 {[%clk 0:00:04.7]} 45. Be2 {[%clk 0:00:04]} 45... Bh3 {[%clk
0:00:04.8]} 46. Bd3 {[%clk 0:00:04.2]} 46... Bf5 {[%clk 0:00:05.5]} 47. Be2
{[%clk 0:00:04.4]} 47... Ke6 {[%clk 0:00:05.9]} 48. Bf3 {[%clk 0:00:03.9]} 48...
Kd6 {[%clk 0:00:06.3]} 49. Ke3 {[%clk 0:00:04.1]} 49... Kc5 {[%clk 0:00:06.5]}
50. Be2 {[%clk 0:00:04.3]} 50... a5 {[%clk 0:00:06.1]} 51. Bf1 {[%clk
0:00:04.4]} 51... Kd5 {[%clk 0:00:06]} 52. Be2 {[%clk 0:00:04.4]} 52... h3
{[%clk 0:00:05.7]} 53. Kf3 {[%clk 0:00:03.8]} 53... Kd4 {[%clk 0:00:05.1]} 54.
Kg3 {[%clk 0:00:03.9]} 54... Ke3 {[%clk 0:00:05.5]} 55. Bf1 {[%clk 0:00:04]}
55... h2 {[%clk 0:00:03.9]} 56. Bg2 {[%clk 0:00:04.1]} 56... Bd3 {[%clk
0:00:02.7]} 57. f5 {[%clk 0:00:03.5]} 57... Bxf5 {[%clk 0:00:03]} 58. Kxh2
{[%clk 0:00:04.3]} 58... Kd4 {[%clk 0:00:03]} 59. Bc6 {[%clk 0:00:04.7]} 59...
Kc3 {[%clk 0:00:03]} 60. Kg3 {[%clk 0:00:05.3]} 60... Kb3 {[%clk 0:00:03.5]} 61.
Kf4 {[%clk 0:00:05.9]} 61... Bc2 {[%clk 0:00:03.5]} 62. Ke3 {[%clk 0:00:06.4]}
62... Kxa3 {[%clk 0:00:03.4]} 63. Kd2 {[%clk 0:00:07]} 63... Ba4 {[%clk
0:00:03.5]} 64. Bxa4 {[%clk 0:00:06.4]} 64... Kxa4 {[%clk 0:00:04.4]} 65. Kc3
{[%clk 0:00:06.4]} 65... Ka3 {[%clk 0:00:05]} 66. Kc2 {[%clk 0:00:06.9]} 66...
Ka2 {[%clk 0:00:05]} 67. Kc1 {[%clk 0:00:07.5]} 67... a4 {[%clk 0:00:05.9]} 68.
Kc2 {[%clk 0:00:08.1]} 68... Ka1 {[%clk 0:00:06.2]} 69. Kc1 {[%clk 0:00:09]}
69... a3 {[%clk 0:00:06.8]} 70. Kc2 {[%clk 0:00:09.5]} 70... a2 {[%clk
0:00:07.6]} 71. Kc1 {[%clk 0:00:10.4]} 1/2-1/2

[Event "Late-Titled-Tuesday-Blitz-November-28-2023"]
[Site "Chess.com"]
[Date "2023.11.28"]
[Round "4"]
[White "Staudenhocker43"]
[Black "IMRosen"]
[Result "1/2-1/2"]
[WhiteElo "2523"]
[BlackElo "2697"]
[TimeControl "180+1"]
[EndTime "14:38:41 PST"]
[Termination "Game drawn by stalemate"]

1. d4 {[%clk 0:03:00.9]} 1... d5 {[%clk 0:03:00.1]} 2. c4 {[%clk 0:03:01]} 2...
e6 {[%clk 0:03:00.5]} 3. Nf3 {[%clk 0:03:00.8]} 3... Nf6 {[%clk 0:03:01]} 4. Nc3
{[%clk 0:03:01]} 4... Nbd7 {[%clk 0:03:00.9]} 5. Bf4 {[%clk 0:02:57.9]} 5... Bb4
{[%clk 0:03:00.4]} 6. cxd5 {[%clk 0:02:57.2]} 6... exd5 {[%clk 0:03:00.8]} 7. e3
{[%clk 0:02:54.9]} 7... Ne4 {[%clk 0:03:01.2]} 8. Rc1 {[%clk 0:02:49.1]} 8... g5
{[%clk 0:03:01.2]} 9. Bg3 {[%clk 0:02:43.2]} 9... h5 {[%clk 0:02:55]} 10. h4
{[%clk 0:02:29.6]} 10... Nxg3 {[%clk 0:02:49]} 11. fxg3 {[%clk 0:02:30.5]} 11...
gxh4 {[%clk 0:02:41.5]} 12. gxh4 {[%clk 0:02:25.2]} 12... c6 {[%clk 0:02:39.2]}
13. Bd3 {[%clk 0:02:22.9]} 13... Nf6 {[%clk 0:02:39.3]} 14. Ng5 {[%clk
0:02:18.1]} 14... Qe7 {[%clk 0:02:23.1]} 15. Kd2 {[%clk 0:02:07.7]} 15... Ng4
{[%clk 0:02:11.1]} 16. Qf3 {[%clk 0:02:05.2]} 16... Rh6 {[%clk 0:01:36.4]} 17.
Rcf1 {[%clk 0:01:53.3]} 17... f6 {[%clk 0:01:36.3]} 18. Nh3 {[%clk 0:01:50.6]}
18... Be6 {[%clk 0:01:36.7]} 19. Nf4 {[%clk 0:01:48.9]} 19... Bf7 {[%clk
0:01:37.3]} 20. Bf5 {[%clk 0:01:36]} 20... Bxc3+ {[%clk 0:00:52]} 21. bxc3
{[%clk 0:01:34.3]} 21... Qa3 {[%clk 0:00:52]} 22. Rc1 {[%clk 0:01:21]} 22...
Qxa2+ {[%clk 0:00:39.4]} 23. Rc2 {[%clk 0:01:20.5]} 23... Qa3 {[%clk 0:00:39.8]}
24. Re1 {[%clk 0:01:05.4]} 24... Kf8 {[%clk 0:00:33.5]} 25. e4 {[%clk
0:00:40.4]} 25... dxe4 {[%clk 0:00:33.4]} 26. Rxe4 {[%clk 0:00:35.4]} 26... Bd5
{[%clk 0:00:23.4]} 27. Nxd5 {[%clk 0:00:35]} 27... cxd5 {[%clk 0:00:21.9]} 28.
Re6 {[%clk 0:00:32.9]} 28... Kg7 {[%clk 0:00:01.8]} 29. Qxd5 {[%clk 0:00:21.1]}
29... Rf8 {[%clk 0:00:01.3]} 30. Qxb7+ {[%clk 0:00:18.8]} 30... Rf7 {[%clk
0:00:01.7]} 31. Qf3 {[%clk 0:00:18.7]} 31... Rh8 {[%clk 0:00:01.7]} 32. Bxg4
{[%clk 0:00:18.5]} 32... hxg4 {[%clk 0:00:02]} 33. Qxg4+ {[%clk 0:00:19.4]}
33... Kf8 {[%clk 0:00:02.5]} 34. Rc6 {[%clk 0:00:16.7]} 34... Re7 {[%clk
0:00:01.7]} 35. Rc8+ {[%clk 0:00:15.7]} 35... Re8 {[%clk 0:00:01.9]} 36. Rxe8+
{[%clk 0:00:15.9]} 36... Kxe8 {[%clk 0:00:02.5]} 37. Qe6+ {[%clk 0:00:16.4]}
37... Kf8 {[%clk 0:00:01.9]} 38. Qxf6+ {[%clk 0:00:16.2]} 38... Kg8 {[%clk
0:00:02.6]} 39. Kd3 {[%clk 0:00:15.4]} 39... Qa4 {[%clk 0:00:02.2]} 40. Rf2
{[%clk 0:00:14.6]} 40... Qb5+ {[%clk 0:00:02.4]} 41. Ke3 {[%clk 0:00:13.2]}
41... Qe8+ {[%clk 0:00:02.7]} 42. Kd2 {[%clk 0:00:13.1]} 42... Rh7 {[%clk
0:00:03.3]} 43. Qg5+ {[%clk 0:00:12.6]} 43... Rg7 {[%clk 0:00:03.9]} 44. Qd5+
{[%clk 0:00:12.7]} 44... Kh8 {[%clk 0:00:04.6]} 45. Qf5 {[%clk 0:00:12.4]} 45...
Qd8 {[%clk 0:00:03.6]} 46. Qf8+ {[%clk 0:00:12.6]} 46... Qxf8 {[%clk 0:00:01.9]}
47. Rxf8+ {[%clk 0:00:13.5]} 47... Kh7 {[%clk 0:00:02.6]} 48. Rf2 {[%clk
0:00:13.9]} 48... a5 {[%clk 0:00:02.5]} 49. Kc2 {[%clk 0:00:13.7]} 49... Rb7
{[%clk 0:00:03.2]} 50. Rf5 {[%clk 0:00:13.3]} 50... Ra7 {[%clk 0:00:02.7]} 51.
Kb3 {[%clk 0:00:13]} 51... Kg6 {[%clk 0:00:03]} 52. Re5 {[%clk 0:00:12.8]} 52...
Kf6 {[%clk 0:00:03.1]} 53. g4 {[%clk 0:00:13]} 53... Rb7+ {[%clk 0:00:02.5]} 54.
Ka3 {[%clk 0:00:13.2]} 54... Rc7 {[%clk 0:00:03.3]} 55. Rc5 {[%clk 0:00:13.6]}
55... Ra7 {[%clk 0:00:02.9]} 56. Ka4 {[%clk 0:00:13.8]} 56... Re7 {[%clk
0:00:02.1]} 57. Rxa5 {[%clk 0:00:13.8]} 57... Re1 {[%clk 0:00:02.4]} 58. Rc5
{[%clk 0:00:14.3]} 58... Ra1+ {[%clk 0:00:02.2]} 59. Kb4 {[%clk 0:00:14.8]}
59... Ke6 {[%clk 0:00:02.5]} 60. Kc4 {[%clk 0:00:15]} 60... Rd1 {[%clk
0:00:01.6]} 61. g5 {[%clk 0:00:15]} 61... Kd6 {[%clk 0:00:01.7]} 62. h5 {[%clk
0:00:14.3]} 62... Rg1 {[%clk 0:00:02.4]} 63. g6 {[%clk 0:00:14.2]} 63... Ke6
{[%clk 0:00:03.1]} 64. Ra5 {[%clk 0:00:14.1]} 64... Kf6 {[%clk 0:00:03.3]} 65.
Ra6+ {[%clk 0:00:13.7]} 65... Kf5 {[%clk 0:00:03.4]} 66. Kc5 {[%clk 0:00:13.9]}
66... Ke4 {[%clk 0:00:03.7]} 67. c4 {[%clk 0:00:14.3]} 67... Rg5+ {[%clk
0:00:03.2]} 68. d5 {[%clk 0:00:14.4]} 68... Rxh5 {[%clk 0:00:03.6]} 69. Re6+
{[%clk 0:00:13.9]} 69... Kd3 {[%clk 0:00:03.6]} 70. g7 {[%clk 0:00:14.1]} 70...
Rg5 {[%clk 0:00:03.8]} 71. Re7 {[%clk 0:00:14.5]} 71... Rg4 {[%clk 0:00:04.4]}
72. d6 {[%clk 0:00:14.7]} 72... Rxc4+ {[%clk 0:00:04.5]} 73. Kb5 {[%clk
0:00:15.2]} 73... Rg4 {[%clk 0:00:02.5]} 74. d7 {[%clk 0:00:15.4]} 74... Rg5+
{[%clk 0:00:01.6]} 75. Kc6 {[%clk 0:00:15.7]} 75... Kc2 {[%clk 0:00:01.6]} 76.
d8=Q {[%clk 0:00:15.4]} 76... Rg3 {[%clk 0:00:01.3]} 77. Qd5 {[%clk 0:00:14.8]}
77... Kb2 {[%clk 0:00:01.1]} 78. Qb5+ {[%clk 0:00:14.3]} 78... Rb3 {[%clk
0:00:01.3]} 79. Qxb3+ {[%clk 0:00:14.3]} 79... Ka1 {[%clk 0:00:01.3]} 80. g8=Q
{[%clk 0:00:15.2]} 1/2-1/2

[Event "Late-Titled-Tuesday-Blitz-November-28-2023"]
[Site "Chess.com"]
[Date "2023.11.28"]
[Round "4"]
[White "Bala-Afiada"]
[Black "wallowss"]
[Result "1-0"]
[WhiteElo "1875"]
[BlackElo "2152"]
[TimeControl "180+1"]
[EndTime "14:38:41 PST"]
[Termination "Bala-Afiada won on time"]

1. d4 {[%clk 0:02:57.9]} 1... Nf6 {[%clk 0:02:59.2]} 2. c4 {[%clk 0:02:58.3]}
2... g6 {[%clk 0:02:59.1]} 3. Nc3 {[%clk 0:02:58.5]} 3... d5 {[%clk 0:02:59]} 4.
cxd5 {[%clk 0:02:59.4]} 4... Nxd5 {[%clk 0:02:59.9]} 5. e4 {[%clk 0:03:00.1]}
5... Nxc3 {[%clk 0:02:59.9]} 6. bxc3 {[%clk 0:03:01]} 6... Bg7 {[%clk
0:03:00.4]} 7. Be3 {[%clk 0:03:00.6]} 7... c5 {[%clk 0:03:00.4]} 8. Bc4 {[%clk
0:03:01]} 8... Nc6 {[%clk 0:03:00]} 9. Ne2 {[%clk 0:03:01.5]} 9... O-O {[%clk
0:02:56.7]} 10. O-O {[%clk 0:03:01.4]} 10... cxd4 {[%clk 0:02:57.5]} 11. cxd4
{[%clk 0:03:01]} 11... Na5 {[%clk 0:02:58.2]} 12. Bd3 {[%clk 0:02:51.5]} 12...
b6 {[%clk 0:02:58.3]} 13. f3 {[%clk 0:02:47.2]} 13... Bb7 {[%clk 0:02:58.2]} 14.
Rc1 {[%clk 0:02:39.8]} 14... Qd7 {[%clk 0:02:57.9]} 15. Qd2 {[%clk 0:02:39.8]}
15... Rfd8 {[%clk 0:02:54.6]} 16. Rfd1 {[%clk 0:02:39.4]} 16... Rac8 {[%clk
0:02:51.8]} 17. Rxc8 {[%clk 0:02:35.1]} 17... Rxc8 {[%clk 0:02:52.5]} 18. Rc1
{[%clk 0:02:35.7]} 18... Rd8 {[%clk 0:02:22.2]} 19. Qb4 {[%clk 0:01:48.7]} 19...
Nc6 {[%clk 0:02:14.8]} 20. Qb5 {[%clk 0:01:41.3]} 20... Nxd4 {[%clk 0:02:07.3]}
21. Qxd7 {[%clk 0:01:27.1]} 21... Nxe2+ {[%clk 0:02:03.4]} 22. Bxe2 {[%clk
0:01:25.2]} 22... Rxd7 {[%clk 0:02:02.6]} 23. Bb5 {[%clk 0:01:22.2]} 23... Rd8
{[%clk 0:01:42.3]} 24. Rc7 {[%clk 0:01:21.8]} 24... Bc8 {[%clk 0:00:36.2]} 25.
Rxa7 {[%clk 0:01:21]} 25... Bf6 {[%clk 0:00:29.3]} 26. Bxb6 {[%clk 0:01:15.6]}
26... Rd1+ {[%clk 0:00:28.7]} 27. Kf2 {[%clk 0:01:15.5]} 27... Rb1 {[%clk
0:00:27.2]} 28. a4 {[%clk 0:01:12.4]} 28... Be6 {[%clk 0:00:22.7]} 29. Ra8+
{[%clk 0:01:03.3]} 29... Kg7 {[%clk 0:00:22.3]} 30. Kg3 {[%clk 0:00:23.1]} 30...
Be5+ {[%clk 0:00:17.6]} 31. f4 {[%clk 0:00:23]} 31... Rb3+ {[%clk 0:00:16.6]}
32. Kf2 {[%clk 0:00:23.4]} 32... Bb2 {[%clk 0:00:12.5]} 33. Rd8 {[%clk
0:00:17.2]} 33... Ba3 {[%clk 0:00:10]} 34. Bd4+ {[%clk 0:00:15.1]} 34... f6
{[%clk 0:00:09]} 35. Bd7 {[%clk 0:00:13.9]} 35... Bf7 {[%clk 0:00:07.4]} 36. Be8
{[%clk 0:00:13.5]} 36... Rb4 {[%clk 0:00:03.3]} 37. Bc5 {[%clk 0:00:11.7]} 37...
Rb2+ {[%clk 0:00:03.1]} 38. Kf3 {[%clk 0:00:11.3]} 38... Bxc5 {[%clk 0:00:03.6]}
39. Bxf7 {[%clk 0:00:11.9]} 39... Kxf7 {[%clk 0:00:04.5]} 40. Rc8 {[%clk
0:00:12.7]} 40... h5 {[%clk 0:00:05.4]} 41. a5 {[%clk 0:00:13.1]} 41... g5
{[%clk 0:00:06.3]} 42. fxg5 {[%clk 0:00:12.5]} 42... Rb3+ {[%clk 0:00:06.3]} 43.
Kf4 {[%clk 0:00:12.4]} 43... fxg5+ {[%clk 0:00:06.9]} 44. Kxg5 {[%clk
0:00:12.6]} 44... Bd6 {[%clk 0:00:07.5]} 45. a6 {[%clk 0:00:11.2]} 45... Ra3
{[%clk 0:00:07.6]} 46. Rc6 {[%clk 0:00:11]} 46... Rxa6 {[%clk 0:00:07.9]} 47.
Rxa6 {[%clk 0:00:10.5]} 47... h4 {[%clk 0:00:07.3]} 48. Kxh4 {[%clk 0:00:10.5]}
48... Bxh2 {[%clk 0:00:07.5]} 49. g3 {[%clk 0:00:10.2]} 49... Bg1 {[%clk
0:00:07.4]} 50. g4 {[%clk 0:00:08.6]} 50... Bd4 {[%clk 0:00:07.7]} 51. Kg5
{[%clk 0:00:08.8]} 51... Bf6+ {[%clk 0:00:07.7]} 52. Rxf6+ {[%clk 0:00:08]}
52... exf6+ {[%clk 0:00:08.6]} 53. Kf5 {[%clk 0:00:08.9]} 53... Ke7 {[%clk
0:00:08.5]} 54. Kg6 {[%clk 0:00:09.1]} 54... Ke6 {[%clk 0:00:07.6]} 55. Kg7
{[%clk 0:00:09.1]} 55... Ke5 {[%clk 0:00:04.8]} 56. Kg6 {[%clk 0:00:09.5]} 56...
Ke6 {[%clk 0:00:04.8]} 57. Kg7 {[%clk 0:00:04.8]} 57... Ke7 {[%clk 0:00:01.9]}
58. Kg8 {[%clk 0:00:03.6]} 58... Ke8 {[%clk 0:00:01.6]} 59. Kh7 {[%clk
0:00:01.7]} 59... Kf7 {[%clk 0:00:01.1]} 60. Kh6 {[%clk 0:00:02.2]} 1-0

[Event "Late-Titled-Tuesday-Blitz-November-28-2023"]
[Site "Chess.com"]
[Date "2023.11.28"]
[Round "4"]
[White "ckgchess"]
[Black "BogdanDeac"]
[Result "1/2-1/2"]
[WhiteElo "2863"]
[BlackElo "3006"]
[TimeControl "180+1"]
[EndTime "14:38:42 PST"]
[Termination "Game drawn by repetition"]

1. e4 {[%clk 0:03:00.9]} 1... e5 {[%clk 0:03:00.2]} 2. Nf3 {[%clk 0:03:01.1]}
2... Nc6 {[%clk 0:03:00.9]} 3. Bc4 {[%clk 0:03:01.7]} 3... d6 {[%clk 0:03:00.3]}
4. d4 {[%clk 0:03:00.7]} 4... Nf6 {[%clk 0:02:59.9]} 5. dxe5 {[%clk 0:02:46.2]}
5... dxe5 {[%clk 0:02:59.6]} 6. Qxd8+ {[%clk 0:02:46.3]} 6... Nxd8 {[%clk
0:03:00.5]} 7. Nxe5 {[%clk 0:02:46.3]} 7... Bd6 {[%clk 0:03:00.2]} 8. Nf3 {[%clk
0:02:41]} 8... Nxe4 {[%clk 0:03:00.2]} 9. Nbd2 {[%clk 0:02:39.1]} 9... Nf6
{[%clk 0:02:32.4]} 10. O-O {[%clk 0:02:38.7]} 10... O-O {[%clk 0:02:31.4]} 11.
Re1 {[%clk 0:02:35.5]} 11... Nc6 {[%clk 0:02:30.1]} 12. c3 {[%clk 0:02:27.5]}
12... Bg4 {[%clk 0:02:16.3]} 13. h3 {[%clk 0:02:27.5]} 13... Bh5 {[%clk
0:02:16.1]} 14. Ne4 {[%clk 0:02:17.2]} 14... Nxe4 {[%clk 0:02:09.3]} 15. Rxe4
{[%clk 0:02:18.1]} 15... Bxf3 {[%clk 0:02:09.5]} 16. gxf3 {[%clk 0:02:19]} 16...
Ne5 {[%clk 0:02:07.9]} 17. Be2 {[%clk 0:02:18.6]} 17... Rfe8 {[%clk 0:02:05.1]}
18. Be3 {[%clk 0:02:04.5]} 18... f5 {[%clk 0:02:05]} 19. Ra4 {[%clk 0:02:03.6]}
19... a6 {[%clk 0:02:00.2]} 20. Rd1 {[%clk 0:01:48.3]} 20... Rad8 {[%clk
0:01:50.3]} 21. Kf1 {[%clk 0:01:45.6]} 21... Nf7 {[%clk 0:00:46.1]} 22. Rad4
{[%clk 0:01:23.1]} 22... Kf8 {[%clk 0:00:45.7]} 23. Rd5 {[%clk 0:01:20.2]} 23...
g6 {[%clk 0:00:43.3]} 24. a4 {[%clk 0:01:08.9]} 24... Re5 {[%clk 0:00:24.1]} 25.
R5d2 {[%clk 0:00:56.9]} 25... Rde8 {[%clk 0:00:19.6]} 26. Bc4 {[%clk 0:00:53.9]}
26... b5 {[%clk 0:00:05.2]} 27. axb5 {[%clk 0:00:53.1]} 27... axb5 {[%clk
0:00:06.1]} 28. Bb3 {[%clk 0:00:49.3]} 28... b4 {[%clk 0:00:05.3]} 29. Bd4
{[%clk 0:00:40.9]} 29... bxc3 {[%clk 0:00:04]} 30. bxc3 {[%clk 0:00:39.1]} 30...
Rb5 {[%clk 0:00:03.9]} 31. Ba4 {[%clk 0:00:39]} 31... Rbb8 {[%clk 0:00:03.7]}
32. Bxe8 {[%clk 0:00:38.8]} 32... Rxe8 {[%clk 0:00:04.6]} 33. Ra2 {[%clk
0:00:36.8]} 33... Ng5 {[%clk 0:00:04.4]} 34. Kg2 {[%clk 0:00:36]} 34... Ne6
{[%clk 0:00:04.7]} 35. Be3 {[%clk 0:00:36.5]} 35... Rb8 {[%clk 0:00:04.3]} 36.
c4 {[%clk 0:00:29.4]} 36... Ke7 {[%clk 0:00:04.2]} 37. Ra7 {[%clk 0:00:27.9]}
37... Bf4 {[%clk 0:00:03.6]} 38. Re1 {[%clk 0:00:21]} 38... Bxe3 {[%clk
0:00:03.3]} 39. fxe3 {[%clk 0:00:21.9]} 39... Rb4 {[%clk 0:00:02.7]} 40. Rc1
{[%clk 0:00:19.2]} 40... Rb2+ {[%clk 0:00:02.6]} 41. Kg3 {[%clk 0:00:19.5]}
41... Re2 {[%clk 0:00:03.2]} 42. Rc3 {[%clk 0:00:18.1]} 42... g5 {[%clk
0:00:03.4]} 43. h4 {[%clk 0:00:17.4]} 43... h6 {[%clk 0:00:03.5]} 44. hxg5
{[%clk 0:00:18]} 44... hxg5 {[%clk 0:00:04.4]} 45. c5 {[%clk 0:00:17.9]} 45...
Kd7 {[%clk 0:00:04.7]} 46. c6+ {[%clk 0:00:17.4]} 46... Kd6 {[%clk 0:00:04.5]}
47. Ra5 {[%clk 0:00:17.7]} 47... f4+ {[%clk 0:00:04.1]} 48. exf4 {[%clk
0:00:18.6]} 48... gxf4+ {[%clk 0:00:04.7]} 49. Kg4 {[%clk 0:00:18.1]} 49... Ke7
{[%clk 0:00:04.5]} 50. Rd5 {[%clk 0:00:15.9]} 50... Rg2+ {[%clk 0:00:04.6]} 51.
Kf5 {[%clk 0:00:15.3]} 51... Rg5+ {[%clk 0:00:04.5]} 52. Ke4 {[%clk 0:00:15.3]}
52... Rg2 {[%clk 0:00:05.1]} 53. Rd7+ {[%clk 0:00:14.7]} 53... Kf6 {[%clk
0:00:05.4]} 54. Kd5 {[%clk 0:00:13.5]} 54... Rd2+ {[%clk 0:00:04.7]} 55. Kc4
{[%clk 0:00:14.1]} 55... Rb2 {[%clk 0:00:04.7]} 56. Rc1 {[%clk 0:00:12]} 56...
Rb6 {[%clk 0:00:04.6]} 57. Kd5 {[%clk 0:00:10.9]} 57... Rb5+ {[%clk 0:00:04.7]}
58. Ke4 {[%clk 0:00:11.2]} 58... Re5+ {[%clk 0:00:03.6]} 59. Kd3 {[%clk
0:00:11.7]} 59... Re3+ {[%clk 0:00:04.1]} 60. Kc4 {[%clk 0:00:10.8]} 60... Rxf3
{[%clk 0:00:04.5]} 61. Re1 {[%clk 0:00:10.2]} 61... Rf2 {[%clk 0:00:03.7]} 62.
Kb5 {[%clk 0:00:08.2]} 62... Rb2+ {[%clk 0:00:03.6]} 63. Ka5 {[%clk 0:00:05.4]}
63... Rc2 {[%clk 0:00:03.5]} 64. Rxe6+ {[%clk 0:00:03.5]} 64... Kxe6 {[%clk
0:00:03.5]} 65. Rxc7 {[%clk 0:00:04.4]} 65... f3 {[%clk 0:00:03.9]} 66. Rc8
{[%clk 0:00:03.6]} 66... f2 {[%clk 0:00:04.1]} 67. Rf8 {[%clk 0:00:04.1]} 67...
Kd6 {[%clk 0:00:04.5]} 68. Rf6+ {[%clk 0:00:02.5]} 68... Kc7 {[%clk 0:00:04.1]}
69. Kb5 {[%clk 0:00:02.9]} 69... Rb2+ {[%clk 0:00:03.9]} 70. Kc5 {[%clk
0:00:03]} 70... Rc2+ {[%clk 0:00:04.2]} 71. Kb5 {[%clk 0:00:03.6]} 71... Rb2+
{[%clk 0:00:04.5]} 72. Kc5 {[%clk 0:00:04.2]} 72... Rc2+ {[%clk 0:00:05.2]} 73.
Kb5 {[%clk 0:00:04.9]} 1/2-1/2